bitfinex/quotes_BTCUSD_20241123
["timestamp","ask_amount","ask_price","bid_price","bid_amount"]
[1732334516311,0.023,98287.0,98273.0,0.0008607]
[1732334516519,0.00127195,98286.0,98273.0,0.0008607]
[1732334523714,0.00127195,98286.0,98252.0,0.00946391]
[1732334524176,0.00127195,98286.0,98271.0,0.040553]
[1732334524394,0.00127195,98286.0,98252.0,0.00946391]
[1732334524606,0.00127195,98286.0,98253.0,0.040553]
[1732334527084,0.023,98284.0,98253.0,0.040553]
[1732334527291,0.00127193,98283.0,98253.0,0.040553]
[1732334527521,0.00127193,98282.0,98253.0,0.040553]
[1732334527738,0.00127193,98283.0,98253.0,0.040553]
[1732334531872,0.023,98281.0,98253.0,0.040553]
[1732334532105,0.023,98278.0,98253.0,0.040553]
[1732334532334,0.00127194,98277.0,98253.0,0.040553]
[1732334533020,0.00127194,98277.0,98253.0,0.041414]
[1732334534594,0.00127194,98277.0,98257.0,0.13525898]
[1732334535531,0.00127194,98277.0,98263.0,0.13525898]
[1732334535766,0.00127194,98277.0,98264.0,0.13525898]
[1732334536030,0.00127194,98277.0,98264.0,0.13621145]
[1732334536474,0.00127194,98277.0,98267.0,0.13621145]
[1732334536952,0.0497,98274.0,98267.0,0.13621145]
[1732334537170,0.0794,98272.0,98267.0,0.13621145]
[1732334537469,0.023,98269.0,98266.0,0.04053588]
[1732334537708,0.023,98269.0,98265.0,0.13621145]
[1732334537709,0.1291,98267.0,98265.0,0.13621145]
[1732334537940,0.02427209,98266.0,98262.0,0.04145331]
[1732334538412,0.02427209,98266.0,98257.0,0.13638656]
[1732334538770,0.02427209,98266.0,98259.0,0.13638656]
[1732334539093,0.023,98264.0,98259.0,0.13638656]
[1732334539326,0.023,98262.0,98259.0,0.13638656]
[1732334539547,0.00127214,98261.0,98260.0,0.13638656]
[1732334540522,0.00127214,98261.0,98259.0,0.18184875]
[1732334541212,0.00127214,98261.0,98258.0,0.18184875]
[1732334541597,0.00127214,98261.0,98260.0,0.18184875]
[1732334542650,0.00127214,98261.0,98259.0,0.22731094]
[1732334543426,0.00127214,98261.0,98253.0,0.0394491]
[1732334543605,0.00127214,98261.0,98260.0,0.22724048]
[1732334543810,0.00127214,98261.0,98253.0,0.0394491]
[1732334544005,0.00127214,98261.0,98260.0,0.22724114]
[1732334544233,0.00127214,98261.0,98260.0,0.2272407]
[1732334544446,0.00127214,98261.0,98259.0,0.000861]
[1732334546595,0.00127214,98261.0,98260.0,0.27271231]
[1732334547305,0.00127214,98261.0,98259.0,0.27357331]
[1732334547511,0.00127214,98261.0,98259.0,0.000861]
[1732334551531,0.023,98262.0,98259.0,0.000861]
[1732334551733,0.02427217,98262.0,98259.0,0.000861]
[1732334552588,0.02427217,98262.0,98259.0,0.40376535]
[1732334553625,0.02427217,98262.0,98260.0,0.40290435]
[1732334556187,0.02427215,98262.0,98260.0,0.40290435]
[1732334556436,0.0788,98269.0,98260.0,0.40290435]
[1732334556641,0.0476,98272.0,98259.0,0.000861]
[1732334556642,0.0476,98272.0,98265.0,0.40290435]
[1732334556852,0.0476,98272.0,98259.0,0.1567196]
[1732334556853,0.00127202,98271.0,98267.0,0.40290435]
[1732334557297,0.00127202,98271.0,98268.0,0.40290435]
[1732334557748,0.00127202,98271.0,98267.0,0.40290435]
[1732334557957,0.02427202,98271.0,98264.0,0.40290435]
[1732334558164,0.0706,98269.0,98262.0,0.40290435]
[1732334558374,0.0706,98269.0,98259.0,0.000861]
[1732334558375,0.0476,98266.0,98259.0,0.40376535]
[1732334558584,0.02427215,98265.0,98259.0,0.000861]
[1732334558802,0.02427215,98265.0,98259.0,0.40376535]
[1732334559281,0.02427215,98265.0,98259.0,0.000861]
[1732334559921,0.02427215,98265.0,98261.0,0.27293836]
[1732334560138,0.02427215,98265.0,98260.0,0.27293836]
[1732334560366,0.02427215,98265.0,98259.0,0.000861]
[1732334560367,0.023,98263.0,98259.0,0.000861]
[1732334560576,0.023,98260.0,98259.0,0.000861]
[1732334560810,0.023,98260.0,98249.0,0.44245905]
[1732334560811,0.223,98238.0,98229.0,0.03835488]
[1732334561034,0.223,98238.0,98236.0,0.22749902]
[1732334561035,0.2706,98238.0,98236.0,0.22749902]
[1732334561266,0.2706,98238.0,98231.0,0.09093305]
[1732334561482,0.2706,98238.0,98225.0,0.0010061]
[1732334561483,0.2706,98238.0,98228.0,0.09093305]
[1732334561746,0.2706,98238.0,98225.0,0.0010061]
[1732334562164,0.2706,98238.0,98225.0,0.0008601]
[1732334564126,0.123,98238.0,98225.0,0.0008601]
[1732334564297,0.2,98250.0,98225.0,0.0008601]
[1732334564298,0.00127267,98245.0,98225.0,0.0008601]
[1732334564514,0.00127253,98249.0,98225.0,0.0008601]
[1732334564734,0.00127253,98248.0,98225.0,0.0008601]
[1732334564963,0.00127253,98249.0,98225.0,0.0008601]
[1732334565204,0.00127253,98252.0,98225.0,0.0008601]
[1732334565898,0.02427253,98252.0,98225.0,0.0008601]
[1732334566543,0.02427253,98252.0,98230.0,0.11888916]
[1732334566738,0.023,98252.0,98233.0,0.03851338]
[1732334566987,0.00127248,98251.0,98240.0,0.11888916]
[1732334567291,0.00127244,98251.0,98241.0,0.00474161]
[1732334567498,0.023,98254.0,98241.0,0.00474161]
[1732334567499,0.00127239,98253.0,98241.0,0.00474161]
[1732334567759,0.00127232,98259.0,98241.0,0.00474161]
[1732334567977,0.00127238,98258.0,98241.0,0.00474161]
[1732334568185,0.000994,98260.0,98233.0,0.03851338]
[1732334568186,0.000994,98260.0,98249.0,0.11888916]
[1732334568391,0.00127226,98275.0,98249.0,0.11888916]
[1732334568597,0.00127218,98274.0,98260.0,0.11888916]
[1732334568819,0.00127215,98273.0,98250.0,0.11888916]
[1732334569045,0.00127216,98272.0,98261.0,0.00472439]
[1732334569327,0.00127216,98272.0,98250.0,0.11888916]
[1732334569328,0.00127215,98276.0,98250.0,0.11888916]
[1732334569570,0.00127215,98275.0,98262.0,0.0046974]
[1732334569794,0.0012721,98276.0,98260.0,0.11888916]
[1732334570005,0.0017224,98277.0,98266.0,0.11888916]
[1732334570451,0.0017224,98277.0,98267.0,0.00469702]
[1732334571333,0.023,98276.0,98267.0,0.00469702]
[1732334571857,0.00127203,98275.0,98267.0,0.00469702]
[1732334572282,0.00127203,98275.0,98250.0,0.11888916]
[1732334572699,0.00127203,98275.0,98251.0,0.00457464]
[1732334573780,0.00127203,98275.0,98260.0,0.11888916]
[1732334574208,0.00127203,98275.0,98261.0,0.00458193]
[1732334575530,0.023,98276.0,98261.0,0.00458193]
[1732334576822,0.023,98276.0,98255.0,0.2719795]
[1732334577275,0.023,98276.0,98250.0,0.11888916]
[1732334577276,0.023,98276.0,98256.0,0.2767093]
[1732334579272,0.023,98276.0,98256.0,0.0047298]
[1732334579501,0.00127196,98275.0,98256.0,0.0047298]
[1732334579972,0.00127196,98275.0,98249.0,0.2719795]
[1732334580183,0.00127196,98275.0,98257.0,0.00472862]
[1732334580184,0.023,98272.0,98257.0,0.00472862]
[1732334580400,0.00127231,98271.0,98244.0,0.2719795]
[1732334580612,0.002,98268.0,98242.0,0.2719795]
[1732334580824,0.002,98268.0,98245.0,0.00472892]
[1732334580825,0.00127238,98267.0,98245.0,0.00472892]
[1732334581052,0.00127238,98267.0,98243.0,0.00472891]
[1732334581248,0.0012724,98268.0,98237.0,0.0008604]
[1732334581489,0.0012724,98268.0,98244.0,0.00472889]
[1732334581721,0.0012724,98268.0,98237.0,0.0008604]
[1732334581722,0.023,98259.0,98238.0,0.00472902]
[1732334581936,0.00127249,98258.0,98237.0,0.0008604]
[1732334582402,0.00127249,98260.0,98237.0,0.0008604]
[1732334584081,0.00127249,98260.0,98238.0,0.0049656]
[1732334584514,0.00127249,98260.0,98237.0,0.0008604]
[1732334584966,0.00127249,98260.0,98238.0,0.00498623]
[1732334585209,0.00127249,98260.0,98237.0,0.0008604]
[1732334587332,0.00127249,98260.0,98225.0,0.0008601]
[1732334587555,0.00127249,98260.0,98232.0,0.00229062]
[1732334588705,0.00127229,98266.0,98232.0,0.00229062]
[1732334588933,0.2017224,98277.0,98233.0,0.1289]
[1732334588934,0.00127214,98275.0,98233.0,0.1289]
[1732334589158,0.0009819,98267.0,98233.0,0.13402692]
[1732334589391,0.0017224,98277.0,98233.0,0.13402692]
[1732334589392,0.00127214,98275.0,98234.0,0.00229062]
[1732334589877,0.00127214,98275.0,98235.0,0.00511989]
[1732334590279,0.02427214,98275.0,98236.0,0.00229062]
[1732334590492,0.06333818,98275.0,98236.0,0.00229062]
[1732334590740,0.02427214,98275.0,98237.0,0.00511974]
[1732334590989,0.023,98269.0,98237.0,0.00511974]
[1732334591272,0.00127232,98268.0,98238.0,0.00229062]
[1732334591731,0.023,98267.0,98238.0,0.00229062]
[1732334591957,0.023,98269.0,98238.0,0.00229062]
[1732334591958,0.00127232,98266.0,98238.0,0.00229062]
[1732334592186,0.00127232,98268.0,98238.0,0.00229062]
[1732334592406,0.00127232,98272.0,98238.0,0.00229062]
[1732334593142,0.023,98266.0,98238.0,0.00229062]
[1732334593399,0.00127232,98265.0,98238.0,0.00229062]
[1732334596771,0.023,98263.0,98238.0,0.00229062]
[1732334596987,0.11883968,98260.0,98238.0,0.00229062]
[1732334597229,0.02427246,98259.0,98232.0,0.0008613]
[1732334598612,0.023,98257.0,98232.0,0.0008613]
[1732334598823,0.00127259,98256.0,98232.0,0.0008613]
[1732334599557,0.023,98255.0,98232.0,0.0008613]
[1732334599792,0.00127259,98254.0,98232.0,0.0008613]
[1732334600023,0.023,98252.0,98232.0,0.0008613]
[1732334600238,0.00127259,98251.0,98232.0,0.0008613]
[1732334600923,0.00127259,98255.0,98232.0,0.0008613]
[1732334601352,0.002,98254.0,98232.0,0.0008613]
[1732334601560,0.11883968,98250.0,98232.0,0.0008613]
[1732334601769,0.02427259,98249.0,98232.0,0.0008613]
[1732334602952,0.023,98247.0,98232.0,0.0008613]
[1732334603189,0.00127259,98246.0,98232.0,0.0008613]
[1732334607288,0.023,98245.0,98232.0,0.0008613]
[1732334607515,0.00127259,98244.0,98232.0,0.0008613]
[1732334608176,0.023,98247.0,98232.0,0.0008613]
[1732334608177,0.00127259,98246.0,98232.0,0.0008613]
[1732334608397,0.023,98244.0,98232.0,0.0008613]
[1732334608626,0.00127259,98243.0,98232.0,0.0008613]
[1732334609027,0.00127259,98246.0,98232.0,0.0008613]
[1732334614872,0.023,98238.0,98232.0,0.0008613]
[1732334615195,0.00127269,98237.0,98232.0,0.0008613]
[1732334615628,0.00127269,98245.0,98232.0,0.0008613]
[1732334621722,0.023,98244.0,98232.0,0.0008613]
[1732334621947,0.00127269,98243.0,98232.0,0.0008613]
[1732334622176,0.023,98246.0,98232.0,0.0008613]
[1732334622177,0.00127269,98245.0,98232.0,0.0008613]
[1732334623885,0.023,98241.0,98232.0,0.0008613]
[1732334624089,0.023,98237.0,98232.0,0.0008613]
[1732334624317,0.00127267,98236.0,98232.0,0.0008613]
[1732334625065,0.00127266,98240.0,98232.0,0.0008613]
[1732334625267,0.023,98241.0,98232.0,0.0008613]
[1732334625268,0.00127266,98239.0,98232.0,0.0008613]
[1732334625474,0.00127266,98240.0,98232.0,0.0008613]
[1732334631632,0.04751123,98239.0,98232.0,0.0008613]
[1732334631853,0.10327266,98240.0,98232.0,0.0008613]
[1732334631854,0.023,98237.0,98232.0,0.0008613]
[1732334632059,0.00127279,98236.0,98232.0,0.0008613]
[1732334632632,0.00127279,98236.0,98194.0,0.03939888]
[1732334632839,0.11883968,98230.0,98188.0,0.06025969]
[1732334633049,0.02427283,98229.0,98188.0,0.06025969]
[1732334635547,0.02427283,98229.0,98198.0,0.0781]
[1732334637354,0.023,98227.0,98198.0,0.0781]
[1732334637566,0.00127283,98226.0,98198.0,0.0781]
[1732334637989,0.00127283,98228.0,98198.0,0.0781]
[1732334640363,0.00127283,98228.0,98198.0,0.0789602]
[1732334641739,0.023,98220.0,98198.0,0.0789602]
[1732334641955,0.00127285,98219.0,98198.0,0.0789602]
[1732334642396,0.00127285,98219.0,98191.0,0.22734146]
[1732334642620,0.00127285,98219.0,98181.0,0.03901648]
[1732334642837,0.00127285,98219.0,98178.0,0.27272229]
[1732334643050,0.00127285,98219.0,98176.0,0.37272229]
[1732334645014,0.00127285,98219.0,98175.0,0.03993853]
[1732334645015,0.00127285,98219.0,98175.0,0.31266082]
[1732334645246,0.00127285,98219.0,98175.0,0.27272229]
[1732334645457,0.00127285,98219.0,98176.0,0.1262]
[1732334646564,0.00127285,98219.0,98177.0,0.27272229]
[1732334646773,0.00127285,98219.0,98178.0,0.27272229]
[1732334647658,0.00127285,98219.0,98180.0,0.27272229]
[1732334648081,0.00127285,98219.0,98181.0,0.1262]
[1732334648296,0.00127285,98219.0,98182.0,0.0793]
[1732334651478,0.00127285,98219.0,98183.0,0.0023122]
[1732334651875,0.023,98218.0,98183.0,0.0023122]
[1732334652074,0.00127285,98217.0,98183.0,0.0023122]
[1732334652298,0.00127285,98217.0,98194.0,0.27272229]
[1732334652506,0.00127285,98217.0,98196.0,0.27272229]
[1732334652706,0.00127285,98217.0,98197.0,0.0023122]
[1732334653136,0.00127285,98217.0,98203.0,0.22737752]
[1732334653374,0.00127285,98217.0,98197.0,0.0023122]
[1732334653375,0.00127285,98217.0,98204.0,0.22737752]
[1732334654464,0.00127285,98217.0,98205.0,0.22737752]
[1732334655611,0.00127285,98217.0,98206.0,0.22737752]
[1732334656239,0.00127285,98217.0,98205.0,0.22737752]
[1732334656449,0.00127285,98217.0,98197.0,0.27503449]
[1732334656450,0.00127285,98217.0,98206.0,0.22737752]
[1732334658211,0.00127285,98217.0,98207.0,0.22737752]
[1732334658637,0.00127285,98217.0,98204.0,0.21518208]
[1732334658850,0.00127285,98217.0,98197.0,0.0023122]
[1732334659042,0.00127285,98217.0,98186.0,0.03983104]
[1732334659043,0.00127285,98217.0,98193.0,0.27272229]
[1732334659251,0.023,98215.0,98193.0,0.27272229]
[1732334659472,0.023,98212.0,98193.0,0.27272229]
[1732334659702,0.07803385,98210.0,98191.0,0.27272229]
[1732334659910,0.07803385,98210.0,98181.0,0.45045242]
[1732334659911,0.02427294,98209.0,98189.0,0.27272229]
[1732334663074,0.02427294,98209.0,98188.0,0.27272229]
[1732334663498,0.02427294,98209.0,98189.0,0.27272229]
[1732334667406,0.02427294,98209.0,98190.0,0.27272229]
[1732334668514,0.02427294,98209.0,98194.0,0.27272229]
[1732334669393,0.02427294,98209.0,98198.0,0.27272229]
[1732334669602,0.023,98209.0,98199.0,0.27272229]
[1732334669807,0.023,98209.0,98198.0,0.27319229]
[1732334670461,0.023,98209.0,98199.0,0.27319229]
[1732334671305,0.02427285,98209.0,98200.0,0.27319229]
[1732334672387,0.02427285,98209.0,98201.0,0.27319229]
[1732334673312,0.02427285,98209.0,98202.0,0.27319229]
[1732334673969,0.00127285,98208.0,98202.0,0.27319229]
[1732334674186,0.023,98209.0,98201.0,0.27319229]
[1732334674422,0.00127285,98208.0,98202.0,0.27319229]
[1732334674640,0.023,98209.0,98202.0,0.27319229]
[1732334675068,0.02427285,98209.0,98202.0,0.27319229]
[1732334675278,0.023,98209.0,98204.0,0.27319229]
[1732334675928,0.00127285,98208.0,98204.0,0.27319229]
[1732334676584,0.00127285,98208.0,98205.0,0.27319229]
[1732334676797,0.023,98209.0,98205.0,0.27319229]
[1732334677048,0.023,98209.0,98204.0,0.27319229]
[1732334677259,0.0017218,98217.0,98207.0,0.27319229]
[1732334677469,0.023,98216.0,98207.0,0.27319229]
[1732334677708,0.00127281,98215.0,98208.0,0.27319229]
[1732334678135,0.00127281,98215.0,98198.0,0.0809]
[1732334678354,0.0826218,98217.0,98198.0,0.0809]
[1732334678567,0.00127281,98216.0,98198.0,0.0809]
[1732334679879,0.00127281,98216.0,98186.0,0.02076456]
[1732334680083,0.0482,98215.0,98186.0,0.02076456]
[1732334680308,0.02427274,98214.0,98186.0,0.02076456]
[1732334680715,0.02420146,98214.0,98186.0,0.02076456]
[1732334682627,0.02420146,98214.0,98186.0,0.06174268]
[1732334682835,0.02420146,98214.0,98186.0,0.04097812]
[1732334683287,0.02420146,98214.0,98183.0,0.0809]
[1732334683501,0.023,98212.0,98181.0,0.0008609]
[1732334683718,0.00120156,98211.0,98181.0,0.0008609]
[1732334683931,0.023,98209.0,98181.0,0.0008609]
[1732334684201,0.023,98207.0,98181.0,0.0008609]
[1732334684431,0.00120163,98206.0,98181.0,0.0008609]
[1732334684662,0.00120163,98206.0,98181.0,0.04183079]
[1732334685071,0.00120163,98206.0,98181.0,0.0008609]
[1732334686349,0.00120163,98206.0,98182.0,0.00060736]
[1732334688159,0.00120163,98206.0,98183.0,0.40374575]
[1732334688417,0.00120163,98206.0,98184.0,0.40374575]
[1732334689285,0.0009842,98208.0,98185.0,0.40374575]
[1732334689522,0.0009842,98208.0,98194.0,0.40374575]
[1732334689758,0.0017212,98209.0,98198.0,0.40374575]
[1732334690191,0.0017212,98209.0,98199.0,0.40374575]
[1732334690421,0.0017212,98209.0,98200.0,0.13]
[1732334690650,0.0017212,98209.0,98200.0,0.53435311]
[1732334690893,0.0017212,98209.0,98202.0,0.40374575]
[1732334691143,0.0017212,98209.0,98203.0,0.00060736]
[1732334691600,0.0017212,98209.0,98203.0,0.01825107]
[1732334691811,0.0017212,98209.0,98204.0,0.01764371]
[1732334692718,0.0017212,98209.0,98207.0,0.1]
[1732334692934,0.0017212,98209.0,98208.0,0.01764371]
[1732334694714,0.0017212,98209.0,98200.0,0.17091908]
[1732334694715,0.0017212,98209.0,98200.0,0.12181908]
[1732334696092,0.0017212,98209.0,98200.0,0.04091908]
[1732334696541,0.0017212,98209.0,98194.0,0.29784371]
[1732334696966,0.0017212,98209.0,98194.0,0.251627]
[1732334697196,0.0017212,98209.0,98195.0,0.01247344]
[1732334699016,0.0017212,98209.0,98194.0,0.05895356]
[1732334700570,0.0017212,98209.0,98195.0,0.01247344]
[1732334701006,0.0017212,98209.0,98195.0,0.02954966]
[1732334701690,0.0017212,98209.0,98195.0,0.01707622]
[1732334702150,0.049,98208.0,98195.0,0.01707622]
[1732334703540,0.049,98208.0,98194.0,0.04130985]
[1732334703977,0.049,98208.0,98183.0,0.01678242]
[1732334704431,0.049,98208.0,98185.0,0.1]
[1732334704885,0.049,98208.0,98185.0,0.11711816]
[1732334705096,0.049,98208.0,98186.0,0.00855908]
[1732334705324,0.049,98208.0,98187.0,0.1]
[1732334705548,0.049,98208.0,98186.0,0.01711816]
[1732334705762,0.049,98208.0,98188.0,0.01711816]
[1732334705975,0.0774,98207.0,98188.0,0.01711816]
[1732334707934,0.0017212,98209.0,98182.0,0.04016611]
[1732334707935,0.0774,98202.0,98182.0,0.04016611]
[1732334708240,0.0774,98202.0,98181.0,0.0008609]
[1732334708670,0.0783888,98202.0,98181.0,0.04166511]
[1732334708884,0.0783888,98202.0,98181.0,0.0008609]
[1732334711398,0.07966171,98202.0,98181.0,0.0008609]
[1732334711796,0.0783888,98202.0,98181.0,0.0008609]
[1732334713390,0.0783888,98202.0,98182.0,0.0090177]
[1732334715007,0.0009888,98202.0,98188.0,0.1]
[1732334715438,0.0009888,98202.0,98189.0,0.0090177]
[1732334715894,0.0009888,98202.0,98190.0,0.40318833]
[1732334716353,0.0009888,98202.0,98181.0,0.0810609]
[1732334716354,0.0009888,98202.0,98191.0,0.0090177]
[1732334717472,0.1271,98201.0,98188.0,0.40318833]
[1732334717701,0.1271,98201.0,98187.0,0.40318833]
[1732334717998,0.1271,98201.0,98185.0,0.40318833]
[1732334718209,0.1271,98201.0,98183.0,0.40318833]
[1732334718420,0.1271,98201.0,98181.0,0.04116376]
[1732334719964,0.1271,98201.0,98181.0,0.05665802]
[1732334731610,0.0772,98200.0,98181.0,0.05665802]
[1732334731813,0.0772,98200.0,98182.0,0.0089955]
[1732334732022,0.0772,98200.0,98181.0,0.04116376]
[1732334732249,0.0772,98200.0,98181.0,0.0008609]
[1732334732458,0.07847292,98200.0,98182.0,0.00899544]
[1732334732665,0.07847292,98200.0,98181.0,0.0008609]
[1732334732891,0.07847292,98200.0,98183.0,0.00899538]
[1732334733098,0.07847292,98200.0,98182.0,0.00899544]
[1732334733279,0.07847292,98200.0,98184.0,0.00899531]
[1732334733544,0.07847292,98200.0,98185.0,0.00899525]
[1732334734018,0.0499,98199.0,98181.0,0.0008609]
[1732334734231,0.0499,98199.0,98186.0,0.00899316]
[1732334734232,0.0772,98198.0,98186.0,0.00899316]
[1732334734450,0.0772,98198.0,98181.0,0.0008609]
[1732334734888,0.0772,98198.0,98182.0,0.00899329]
[1732334735101,0.0772,98198.0,98182.0,0.00985389]
[1732334735770,0.0474,98197.0,98182.0,0.00985389]
[1732334736220,0.0766,98196.0,98182.0,0.00985389]
[1732334739636,0.0766,98196.0,98183.0,0.01444988]
[1732334740079,0.0766,98204.0,98184.0,0.0090981]
[1732334740296,0.0766,98204.0,98184.0,0.01419012]
[1732334740508,0.0766,98204.0,98185.0,0.01444988]
[1732334740725,0.0775994,98204.0,98186.0,0.00909849]
[1732334740905,0.0775994,98204.0,98186.0,0.01419051]
[1732334741187,0.0775994,98204.0,98188.0,0.40296049]
[1732334741651,0.0775994,98204.0,98189.0,0.01796929]
[1732334741858,0.0775994,98204.0,98189.0,0.44122125]
[1732334741859,0.0009994,98204.0,98189.0,0.44122125]
[1732334743640,0.0009994,98204.0,98190.0,0.40296049]
[1732334744090,0.0009994,98204.0,98191.0,0.00907688]
[1732334745599,0.0009994,98204.0,98191.0,0.41220459]
[1732334746029,0.0009994,98204.0,98191.0,0.00907688]
[1732334746270,0.0009994,98204.0,98191.0,0.41220459]
[1732334746481,0.0009994,98204.0,98191.0,0.00907688]
[1732334750302,0.0474,98203.0,98191.0,0.00907688]
[1732334751009,0.0766,98202.0,98191.0,0.00907688]
[1732334751892,0.0766,98200.0,98191.0,0.00907688]
[1732334752368,0.0474,98199.0,98182.0,0.0008606]
[1732334752593,0.0766,98198.0,98187.0,0.0415227]
[1732334752809,0.0766,98198.0,98183.0,0.00906032]
[1732334753068,0.0766,98198.0,98188.0,0.00905994]
[1732334753291,0.0766,98198.0,98182.0,0.04137878]
[1732334753735,0.0766,98198.0,98183.0,0.00906026]
[1732334755743,0.0027194,98209.0,98183.0,0.00906026]
[1732334755744,0.128,98208.0,98190.0,0.1]
[1732334755989,0.0027194,98209.0,98195.0,0.1]
[1732334756283,0.0017212,98209.0,98195.0,0.1]
[1732334756531,0.0017212,98209.0,98196.0,0.06422157]
[1732334758651,0.0017212,98209.0,98196.0,0.10611142]
[1732334762223,0.0017212,98209.0,98196.0,0.20611142]
[1732334762432,0.0017212,98209.0,98206.0,0.1]
[1732334762638,0.0017212,98209.0,98208.0,0.1]
[1732334763062,0.0017212,98209.0,98208.0,0.10915249]
[1732334763269,0.0017212,98209.0,98208.0,0.12236159]
[1732334763720,0.0017212,98209.0,98200.0,0.01804245]
[1732334764158,0.0017212,98209.0,98201.0,0.00762751]
[1732334767705,0.0017212,98209.0,98199.0,0.01804245]
[1732334768168,0.0017212,98209.0,98200.0,0.00757139]
[1732334771583,0.0017212,98209.0,98200.0,0.00261139]
[1732334771839,0.0017212,98209.0,98200.0,0.00674466]
[1732334774015,0.0017212,98209.0,98197.0,0.01804245]
[1732334774244,0.0017212,98209.0,98201.0,0.00670558]
[1732334774495,0.0017212,98209.0,98196.0,0.04274995]
[1732334774714,0.128,98208.0,98202.0,0.00670552]
[1732334774947,0.0785,98207.0,98203.0,0.00671641]
[1732334775183,0.0785,98207.0,98196.0,0.04274995]
[1732334775678,0.0785,98207.0,98197.0,0.00671673]
[1732334779264,0.0487,98206.0,98197.0,0.00671673]
[1732334779711,0.0487,98201.0,98197.0,0.00671673]
[1732334779712,0.0774,98200.0,98197.0,0.00671673]
[1732334779955,0.0774,98200.0,98196.0,0.0008601]
[1732334779956,0.0487,98199.0,98196.0,0.0008601]
[1732334780178,0.0774,98198.0,98196.0,0.0008601]
[1732334780395,0.0487,98197.0,98196.0,0.0008601]
[1732334780638,0.1261,98197.0,98196.0,0.0008601]
[1732334785370,0.1261,98197.0,98196.0,0.00762753]
[1732334786067,0.1261,98197.0,98196.0,0.0008601]
[1732334786750,0.0017204,98207.0,98196.0,0.0008601]
[1732334786751,0.0774,98206.0,98196.0,0.0008601]
[1732334797244,0.0791204,98206.0,98196.0,0.0008601]
[1732334798358,0.0791204,98206.0,98197.0,0.00679556]
[1732334807221,0.0791204,98206.0,98196.0,0.0008601]
[1732334807441,0.0785204,98206.0,98196.0,0.0008601]
[1732334812290,0.0785204,98206.0,98196.0,0.04252064]
[1732334812729,0.0785204,98206.0,98197.0,0.00698218]
[1732334813156,0.0785204,98206.0,98196.0,0.04178376]
[1732334813365,0.0785204,98206.0,98198.0,0.00698212]
[1732334813560,0.0785204,98206.0,98196.0,0.04178376]
[1732334813852,0.0785204,98206.0,98199.0,0.00698205]
[1732334814067,0.0785204,98206.0,98196.0,0.04178376]
[1732334814294,0.0785204,98206.0,98200.0,0.00698199]
[1732334814517,0.0785204,98206.0,98196.0,0.04178376]
[1732334814702,0.0785204,98206.0,98201.0,0.0069857]
[1732334815148,0.0785204,98206.0,98196.0,0.04178376]
[1732334815351,0.0785204,98206.0,98202.0,0.00698564]
[1732334815799,0.0785204,98206.0,98196.0,0.04178376]
[1732334815800,0.0785204,98206.0,98203.0,0.00698558]
[1732334816016,0.0785204,98206.0,98196.0,0.04178376]
[1732334816436,0.0785204,98206.0,98197.0,0.00698596]
[1732334820392,0.0785204,98206.0,98197.0,0.00784616]
[1732334827244,0.0017204,98206.0,98201.0,0.01804245]
[1732334827492,0.083,98234.0,98205.0,0.0453]
[1732334827909,0.083,98234.0,98206.0,0.01970083]
[1732334828848,0.083,98241.0,98206.0,0.01970083]
[1732334829554,0.083,98241.0,98209.0,0.01804245]
[1732334829795,0.083,98241.0,98213.0,0.002]
[1732334830021,0.04110232,98283.0,98213.0,0.002]
[1732334830022,0.083,98251.0,98213.0,0.06084108]
[1732334830257,0.083,98251.0,98213.0,0.06697499]
[1732334830491,0.083,98260.0,98213.0,0.16641744]
[1732334831006,0.083,98260.0,98213.0,0.19118141]
[1732334831457,0.083,98260.0,98213.0,0.21418141]
[1732334831679,0.083,98260.0,98213.0,0.21218141]
[1732334832132,0.083,98260.0,98213.0,0.25347223]
[1732334832346,0.083,98260.0,98213.0,0.25547223]
[1732334832566,0.083,98260.0,98213.0,0.25347223]
[1732334832798,0.083,98260.0,98213.0,0.25547223]
[1732334836810,0.083,98260.0,98213.0,0.21418141]
[1732334837946,0.083,98260.0,98216.0,0.02004245]
[1732334838372,0.083,98260.0,98216.0,0.05029595]
[1732334841201,0.083,98260.0,98216.0,0.07311373]
[1732334841435,0.0781,98239.0,98216.0,0.07311373]
[1732334841902,0.0715436,98239.0,98221.0,0.01804245]
[1732334842139,0.0715436,98239.0,98222.0,0.02205776]
[1732334842378,0.0715436,98239.0,98222.0,0.02930667]
[1732334842839,0.0715436,98239.0,98223.0,0.023]
[1732334843076,0.0715436,98239.0,98224.0,0.00724878]
[1732334843299,0.0715436,98239.0,98224.0,0.02930654]
[1732334844931,0.0715436,98239.0,98227.0,0.002]
[1732334845154,0.0715436,98239.0,98228.0,0.01102888]
[1732334845380,0.0715436,98239.0,98228.0,0.0292964]
[1732334847439,0.0781,98248.0,98228.0,0.0292964]
[1732334847936,0.0781,98248.0,98231.0,0.002]
[1732334848390,0.0781,98248.0,98230.0,0.0487]
[1732334848391,0.0781,98248.0,98234.0,0.002]
[1732334848874,0.0781,98248.0,98235.0,0.01037392]
[1732334850211,0.0781,98248.0,98230.0,0.1288]
[1732334850212,0.0781,98248.0,98222.0,0.03643872]
[1732334850443,0.0781,98248.0,98236.0,0.00603097]
[1732334850668,0.0781,98248.0,98214.0,0.53883353]
[1732334851092,0.0781,98248.0,98215.0,0.02255639]
[1732334851320,0.0781,98248.0,98215.0,0.02858869]
[1732334852879,0.0781,98248.0,98216.0,0.023]
[1732334853349,0.0781,98248.0,98218.0,0.023]
[1732334853781,0.0781,98248.0,98219.0,0.00603204]
[1732334855134,0.0798202,98248.0,98219.0,0.00603204]
[1732334856065,0.0798202,98248.0,98220.0,0.02304362]
[1732334856547,0.0798202,98248.0,98220.0,0.0290756]
[1732334857213,0.125,98246.0,98220.0,0.0290756]
[1732334857424,0.0469,98244.0,98220.0,0.0290756]
[1732334857628,0.0781,98238.0,98220.0,0.0290756]
[1732334874814,0.0781,98238.0,98220.0,0.33625721]
[1732334875231,0.0781,98238.0,98220.0,0.0290756]
[1732334875690,0.0781,98238.0,98222.0,0.30720233]
[1732334876168,0.0781,98238.0,98223.0,0.31380871]
[1732334876399,0.0781,98238.0,98227.0,0.30720233]
[1732334876611,0.0781,98238.0,98228.0,0.30720233]
[1732334876820,0.0781,98238.0,98228.0,0.02349168]
[1732334877287,0.0781,98238.0,98230.0,0.30718842]
[1732334877521,0.0802,98244.0,98230.0,0.30718842]
[1732334877772,0.0802,98244.0,98231.0,0.01841318]
[1732334877976,0.0802,98244.0,98231.0,0.02348683]
[1732334878189,0.0802,98244.0,98231.0,0.33067525]